[Event "FIDE World Rapid-ch Open 2018"]
[White "Carlsen, Magnus"]
[Black "Anand, Viswanathan"]
[Site "St. Petersburg"]
[Round "12.1"]
[Annotator "ChessBase"]
[Result "1/2-1/2"]
[Date "2018.12.28"]
[WhiteElo "2835"]
[BlackElo "2773"]
[PlyCount "88"]
[TimeControl "900+10"]

1. c4 {[%emt 0:0:0]} c5 {[%emt 0:0:0]} 2. Nf3 {[%emt 0:0:0]} Nc6 {[%emt 0:0:0]
} 3. d4 {[%emt 0:0:0]} cxd4 {[%emt 0:0:0]} 4. Nxd4 {[%emt 0:0:0]} Nf6 {[%emt 0:0:2]} 5. Nc3 {[%emt 0:0:2]} e6 {[%emt 0:0:3]} 6. e4 {[%emt 0:0:4]} Bb4 {[%emt 0:0:14]} 7. Nxc6 {[%emt 0:0:2]} bxc6 {[%emt 0:0:0]} 8. Bd3 {[%emt 0:0:3]} e5 {[%emt 0:0:48]} 9. 0-0 {[%emt 0:0:3]} 0-0 {[%emt 0:0:17]} 10. Qe2 {[%emt 0:0:3]} Bxc3 {[%emt 0:0:16]} 11. bxc3 {[%emt 0:0:3]
} d6 {[%emt 0:0:5]} 12. c5 {[%emt 0:0:47]} dxc5 {[%emt 0:0:0]} 13. f3 {[%emt 0:3:6]} Be6 {[%emt 0:1:47]} 14. Be3 {[%emt 0:0:8]} Qe7 {[%emt 0:1:38]} 15. a4 {[%emt 0:0:35]} Rfb8 {[%emt 0:1:30]} 16. Rfb1 {[%emt 0:3:10]
} Nd7 {[%emt 0:1:12]} 17. a5 {[%emt 0:1:4]} Qd8 {[%emt 0:0:0]} 18. Rd1 {[%emt 0:1:8]} Qe7 {[%emt 0:0:35]} 19. Bc4 {[%emt 0:1:6]} Nf8 {[%emt 0:0:15]} 20. Ba6 {[%emt 0:0:39]} Rb3 {[%emt 0:0:24]} 21. Qd2 {[%emt 0:0:33]
} Rab8 {[%emt 0:1:9]} 22. Bf1 {[%emt 0:0:13]} Nd7 {[%emt 0:0:0]} 23. Bf2 {[%emt 0:0:31]} h6 {[%emt 0:0:10]} 24. Qd6 {[%emt 0:1:11]} Qxd6 {[%emt 0:0:22]} 25. Rxd6 {[%emt 0:0:2]} Rb1 {[%emt 0:0:19]} 26. Rxb1 {[%emt 0:0:38]
} Rxb1 {[%emt 0:0:3]} 27. g4 {[%emt 0:0:2]} Bc4 {[%emt 0:0:0]} 28. Rxd7 {[%emt 0:0:3]} Rxf1+ {[%emt 0:0:9]} 29. Kg2 {[%emt 0:0:2]} a6 {[%emt 0:0:2]} 30. Re7 {[%emt 0:0:26]} f6 {[%emt 0:0:6]} 31. h4 {[%emt 0:0:12]
} Rc1 {[%emt 0:0:4]} 32. g5 {[%emt 0:0:3]} hxg5 {[%emt 0:0:0]} 33. hxg5 {[%emt 0:0:1]} fxg5 {[%emt 0:0:29]} 34. Rxe5 {[%emt 0:0:6]} g4 {[%emt 0:0:6]} 35. fxg4 {[%emt 0:0:7]} Bf1+ {[%emt 0:0:4]} 36. Kf3 {[%emt 0:0:9]
} Rxc3+ {[%emt 0:0:2]} 37. Kf4 {[%emt 0:0:1]} Be2 {[%emt 0:0:0]} 38. Bxc5 {[%emt 0:0:22]} Rf3+ {[%emt 0:0:3]} 39. Kg5 {[%emt 0:0:1]
} Rg3 {[%emt 0:0:2]} 40. Re8+ {[%emt 0:0:25]} Kh7 {[%emt 0:0:15]} 41. Kf5 {[%emt 0:0:31]
} Rxg4 {[%emt 0:0:7]} 42. Bd4 {[%emt 0:0:35]} Rg6 {[%emt 0:0:0]} 43. Re7 {[%emt 0:0:8]} Bd3 {[%emt 0:0:7]} 44. Kf4 {[%emt 0:0:12]} Kg8 {[%emt 0:0:5]} 1/2-1/2

[Event "FIDE World Rapid-ch Open 2018"]
[White "Yu, Yangyi"]
[Black "Gelfand, Boris"]
[Site "St. Petersburg"]
[Round "12.2"]
[Annotator "RC"]
[Result "1/2-1/2"]
[Date "2018.12.28"]
[WhiteElo "2764"]
[BlackElo "2673"]
[PlyCount "81"]
[TimeControl "900+10"]

1. d4 {[%emt 0:0:0]} Nf6 {[%emt 0:0:0]} 2. c4 {[%emt 0:0:0]} e6 {[%emt 0:0:0]} 3. g3 {[%emt 0:0:0]} Bb4+ {[%emt 0:0:0]} 4. Nd2 {[%emt 0:0:10]} c5 {[%emt 0:0:10]} 5. dxc5 {[%emt 0:0:12]} 0-0 {[%emt 0:0:16]} 6. Bg2 {[%emt 0:0:0]} Bxc5 {[%emt 0:0:5]} 7. Ngf3 {[%emt 0:0:2]} Nc6 {[%emt 0:0:12]} 8. 0-0 {[%emt 0:0:4]} d5 {[%emt 0:0:1]} 9. e3 {[%emt 0:0:13]} Qe7 {[%emt 0:0:0]} 10. a3 {[%emt 0:0:35]} a5 {[%emt 0:0:5]} 11. cxd5 {[%emt 0:0:38]} exd5 {[%emt 0:0:43]} 12. Nb3 {[%emt 0:0:2]} Bg4 {[%emt 0:1:50]} 13. h3 {[%emt 0:0:28]
} Bh5 {[%emt 0:0:1]} 14. Nxc5 {[%emt 0:1:43]} Qxc5 {[%emt 0:0:0]} 15. Bd2 {[%emt 0:0:33]} Ne4 {[%emt 0:0:33]} 16. Rc1 {[%emt 0:0:57]} Qb6 {[%emt 0:1:0]} 17. Bc3 {[%emt 0:0:2]} Rfd8 {[%emt 0:0:50]} 18. Bd4 {[%emt 0:1:34]
} Qb5 {[%emt 0:0:44]} 19. g4 {[%emt 0:1:14]} Bg6 {[%emt 0:0:0]} 20. Ne5 {[%emt 0:0:1]} Rac8 {[%emt 0:3:23]} 21. Nxc6 {[%emt 0:1:44]} Rxc6 {[%emt 0:0:16]} 22. f3 {[%emt 0:0:59]} Nc5 {[%emt 0:2:6]} 23. Bxc5 {[%emt 0:0:39]
} Rxc5 {[%emt 0:0:1]} 24. Rxc5 {[%emt 0:0:1]} Qxc5 {[%emt 0:0:0]} 25. Qd4 {[%emt 0:0:2]} Qxd4 {[%emt 0:2:13]} 26. exd4 {[%emt 0:0:0]
} Rc8 {[%emt 0:0:2]} 27. Re1 {[%emt 0:0:31]} Kf8 {[%emt 0:1:27]} 28. f4 {[%emt 0:1:50]
} Be4 {[%emt 0:0:36]} 29. Bxe4 {[%emt 0:0:2]} dxe4 {[%emt 0:0:0]} 30. Rxe4 {[%emt 0:1:26]} Rc2 {[%emt 0:0:6]} 31. Re5 {[%emt 0:0:6]} Rxb2 {[%emt 0:0:13]} 32. Rxa5 {[%emt 0:0:1]} Ke7 {[%emt 0:0:19]} 33. a4 {[%emt 0:1:10]
} Rb4 {[%emt 0:0:19]} 34. Ra7 {[%emt 0:0:35]} Rxd4 {[%emt 0:0:0]} 35. Rxb7+ {[%emt 0:0:8]} Kf6 {[%emt 0:0:1]} 36. a5 {[%emt 0:0:39]} Rxf4 {[%emt 0:0:7]} 37. a6 {[%emt 0:0:3]} Ra4 {[%emt 0:0:3]} 38. a7 {[%emt 0:0:1]
} Ra2 {[%emt 0:0:36]} 39. Kf1 {[%emt 0:0:20]} g6 {[%emt 0:0:0]} 40. h4 {[%emt 0:1:4]} h5 {[%emt 0:0:12]} 41. g5+ {[%emt 0:0:44]} 1/2-1/2

[Event "FIDE World Rapid-ch Open 2018"]
[White "Matlakov, Maxim"]
[Black "Artemiev, Vladislav"]
[Site "St. Petersburg"]
[Round "12.3"]
[Annotator "RC"]
[Result "1/2-1/2"]
[Date "2018.12.28"]
[WhiteElo "2700"]
[BlackElo "2709"]
[PlyCount "71"]
[TimeControl "900+10"]

1. c4 {[%emt 0:0:0]} e5 {[%emt 0:0:0]} 2. Nc3 {[%emt 0:0:0]} Nf6 {[%emt 0:0:7]
} 3. Nf3 {[%emt 0:0:0]} Nc6 {[%emt 0:0:2]} 4. g3 {[%emt 0:0:0]} g6 {[%emt 0:0:2]} 5. d4 {[%emt 0:0:8]} exd4 {[%emt 0:0:1]} 6. Nxd4 {[%emt 0:0:2]
} Bg7 {[%emt 0:0:2]} 7. Bg2 {[%emt 0:0:4]} 0-0 {[%emt 0:0:0]} 8. 0-0 {[%emt 0:0:3]} Re8 {[%emt 0:0:2]} 9. Nc2 {[%emt 0:0:3]} d6 {[%emt 0:0:1]
} 10. Qd2 {[%emt 0:0:3]} a5 {[%emt 0:1:15]} 11. b3 {[%emt 0:0:0]} Nb4 {[%emt 0:3:38]} 12. Bb2 {[%emt 0:2:45]} Nxc2 {[%emt 0:0:5]} 13. Qxc2 {[%emt 0:0:2]} Bf5 {[%emt 0:0:2]} 14. Qc1 {[%emt 0:0:27]} c6 {[%emt 0:2:48]
} 15. Qd2 {[%emt 0:0:59]} Ne4 {[%emt 0:2:0]} 16. Nxe4 {[%emt 0:1:31]
} Bxb2 {[%emt 0:0:3]} 17. Qxb2 {[%emt 0:0:2]} Bxe4 {[%emt 0:0:0]} 18. Rad1 {[%emt 0:1:28]} Bxg2 {[%emt 0:0:7]} 19. Kxg2 {[%emt 0:0:0]} a4 {[%emt 0:0:4]} 20. e3 {[%emt 0:0:15]} axb3 {[%emt 0:0:59]} 21. axb3 {[%emt 0:0:2]} Re6 {[%emt 0:3:39]} 22. Rd3 {[%emt 0:0:26]} Qf6 {[%emt 0:0:0]} 23. Qd2 {[%emt 0:0:29]} h5 {[%emt 0:1:14]} 24. Rd1 {[%emt 0:1:9]} h4 {[%emt 0:0:1]
} 25. Rd4 {[%emt 0:0:6]} Ra3 {[%emt 0:1:5]} 26. Rf4 {[%emt 0:0:0]} Qe5 {[%emt 0:0:43]} 27. Qc2 {[%emt 0:3:19]} hxg3 {[%emt 0:0:24]} 28. hxg3 {[%emt 0:0:1]} Rf6 {[%emt 0:0:22]} 29. Rxf6 {[%emt 0:1:3]} Qxf6 {[%emt 0:0:1]
} 30. Rd4 {[%emt 0:0:6]} Kg7 {[%emt 0:0:40]} 31. Qd3 {[%emt 0:0:0]} Ra2 {[%emt 0:0:1]} 32. Rf4 {[%emt 0:0:10]} Qe5 {[%emt 0:0:1]} 33. Rd4 {[%emt 0:0:26]} Qf6 {[%emt 0:0:1]} 34. Rf4 {[%emt 0:0:2]} Qe5 {[%emt 0:0:1]
} 35. Rd4 {[%emt 0:0:8]} Qf6 {[%emt 0:0:2]} 36. Rf4 1/2-1/2

[Event "FIDE World Rapid-ch Open 2018"]
[White "Wang, Hao"]
[Black "Giri, Anish"]
[Site "St. Petersburg"]
[Round "12.4"]
[Annotator "ChessBase"]
[Result "1/2-1/2"]
[Date "2018.12.28"]
[WhiteElo "2730"]
[BlackElo "2783"]
[PlyCount "52"]
[TimeControl "900+10"]

1. e4 {[%emt 0:0:0]} c5 {[%emt 0:0:0]} 2. Nf3 {[%emt 0:0:0]} d6 {[%emt 0:0:0]} 3. d4 {[%emt 0:0:8]} cxd4 {[%emt 0:0:0]} 4. Nxd4 {[%emt 0:0:1]} Nf6 {[%emt 0:0:0]} 5. Nc3 {[%emt 0:0:2]} a6 {[%emt 0:0:0]} 6. h3 {[%emt 0:0:14]
} e5 {[%emt 0:0:2]} 7. Nde2 {[%emt 0:0:2]} h5 {[%emt 0:0:7]
} 8. Nd5 {[%emt 0:0:2]} Nxd5 {[%emt 0:0:23]} 9. Qxd5 {[%emt 0:0:2]} Nc6 {[%emt 0:0:5]
} 10. Qd1 {[%emt 0:0:5]} Be6 {[%emt 0:0:7]} 11. Nc3 {[%emt 0:0:0]} Rc8 {[%emt 0:0:18]} 12. Be3 {[%emt 0:0:4]} Ne7 {[%emt 0:0:1]} 13. Be2 {[%emt 0:1:3]} d5 {[%emt 0:0:3]} 14. exd5 {[%emt 0:0:9]} Nxd5 {[%emt 0:0:3]
} 15. Nxd5 {[%emt 0:0:10]} Qxd5 {[%emt 0:0:21]} 16. c3 {[%emt 0:1:56]
} Qxd1+ {[%emt 0:0:25]} 17. Rxd1 {[%emt 0:0:39]} Bc5 {[%emt 0:0:0]} 18. Bf3 {[%emt 0:1:23]} Bxe3 {[%emt 0:0:37]} 19. fxe3 {[%emt 0:0:2]
} Ke7 {[%emt 0:0:30]} 20. Bd5 {[%emt 0:1:7]} Rhd8 {[%emt 0:0:47]} 21. Bb3 {[%emt 0:0:59]
} Rxd1+ {[%emt 0:1:12]} 22. Kxd1 {[%emt 0:0:2]} Rd8+ {[%emt 0:0:0]} 23. Ke2 {[%emt 0:0:17]} h4 {[%emt 0:0:47]} 24. Bxe6 {[%emt 0:0:34]} Kxe6 {[%emt 0:0:2]} 25. c4 {[%emt 0:0:2]} e4 {[%emt 0:0:25]} 26. Rc1 {[%emt 0:0:24]
} f5 {[%emt 0:1:27]} 1/2-1/2

[Event "FIDE World Rapid-ch Open 2018"]
[White "Korobov, Anton"]
[Black "Dubov, Daniil"]
[Site "St. Petersburg"]
[Round "12.5"]
[Annotator "ChessBase"]
[Result "0-1"]
[Date "2018.12.28"]
[WhiteElo "2698"]
[BlackElo "2703"]
[PlyCount "98"]
[TimeControl "900+10"]

1. d4 {[%emt 0:0:0]} d5 {[%emt 0:0:0]} 2. c4 {[%emt 0:0:0]} e6 {[%emt 0:0:0]} 3. Nc3 {[%emt 0:0:0]} Bb4 {[%emt 0:0:0]} 4. e3 {[%emt 0:0:2]} Nf6 {[%emt 0:0:0]} 5. a3 {[%emt 0:0:1]} Be7 {[%emt 0:0:0]} 6. Nf3 {[%emt 0:0:0]} 0-0 {[%emt 0:0:0]} 7. Qc2 {[%emt 0:0:43]} Nbd7 {[%emt 0:0:13]} 8. b4 {[%emt 0:0:26]} c6 {[%emt 0:0:4]} 9. Bb2 {[%emt 0:0:30]} dxc4 {[%emt 0:0:0]} 10. Bxc4 {[%emt 0:0:4]} a5 {[%emt 0:0:1]} 11. bxa5 {[%emt 0:1:40]} Rxa5 {[%emt 0:0:20]} 12. 0-0 {[%emt 0:0:6]} b6 {[%emt 0:1:5]} 13. Ne2 {[%emt 0:3:1]
} Bb7 {[%emt 0:0:28]} 14. a4 {[%emt 0:1:35]} Qa8 {[%emt 0:0:0]} 15. Bc3 {[%emt 0:0:25]} Ra7 {[%emt 0:0:3]} 16. Ng5 {[%emt 0:1:3]} Ba6 {[%emt 0:1:32]} 17. Bxa6 {[%emt 0:0:26]} Rxa6 {[%emt 0:0:2]} 18. Nf4 {[%emt 0:1:16]
} Bd6 {[%emt 0:1:54]} 19. Nd3 {[%emt 0:0:27]} h6 {[%emt 0:0:0]} 20. Nf3 {[%emt 0:0:3]} Rc8 {[%emt 0:0:23]} 21. Rfc1 {[%emt 0:0:21]} Ra7 {[%emt 0:0:44]} 22. Qb3 {[%emt 0:1:6]} Be7 {[%emt 0:1:46]} 23. h3 {[%emt 0:0:24]
} c5 {[%emt 0:0:44]} 24. dxc5 {[%emt 0:0:4]} Nxc5 {[%emt 0:0:0]} 25. Nxc5 {[%emt 0:0:3]} Rxc5 {[%emt 0:0:7]} 26. Rcb1 {[%emt 0:1:34]} Ra6 {[%emt 0:1:41]} 27. Bb4 {[%emt 0:0:29]} Rc7 {[%emt 0:0:2]} 28. Bxe7 {[%emt 0:0:2]
} Rxe7 {[%emt 0:0:1]} 29. Nd4 {[%emt 0:0:1]} Ne4 {[%emt 0:0:0]} 30. Rc1 {[%emt 0:0:30]} Nc5 {[%emt 0:0:54]} 31. Qb5 {[%emt 0:0:29]} Rea7 {[%emt 0:1:51]} 32. Nc6 {[%emt 0:0:42]} Rc7 {[%emt 0:0:3]} 33. Ne5 {[%emt 0:0:14]
} Rca7 {[%emt 0:0:50]} 34. a5 {[%emt 0:0:20]} Rxa5 {[%emt 0:0:0]} 35. Rxa5 {[%emt 0:0:3]} Rxa5 {[%emt 0:0:1]} 36. Qxb6 {[%emt 0:0:5]} Ne4 {[%emt 0:0:48]} 37. Qd4 {[%emt 0:0:30]} Rd5 {[%emt 0:0:49]} 38. Qxe4 {[%emt 0:1:16]
} Rd1+ {[%emt 0:0:3]} 39. Rxd1 {[%emt 0:0:1]} Qxe4 {[%emt 0:0:0]} 40. Rd8+ {[%emt 0:0:9]} Kh7 {[%emt 0:0:2]} 41. Nxf7 {[%emt 0:0:2]
} Qb1+ {[%emt 0:0:40]} 42. Kh2 {[%emt 0:0:1]} Qf5 {[%emt 0:0:1]} 43. Rh8+ {[%emt 0:0:15]} Kg6 {[%emt 0:0:3]} 44. Rf8 {[%emt 0:0:1]} Qc5 {[%emt 0:0:0]} 45. Nh8+ {[%emt 0:0:5]} Kh7 {[%emt 0:0:1]} 46. Rf4 {[%emt 0:1:28]} g5 {[%emt 0:1:33]} 47. Re4 {[%emt 0:0:13]} Qd6+ {[%emt 0:0:6]} 48. g3 {[%emt 0:0:30]
} Qd2 {[%emt 0:0:8]} 49. Kg2 {[%emt 0:0:6]} Qd5 {[%emt 0:0:0]} 0-1

[Event "FIDE World Rapid-ch Open 2018"]
[White "Zhigalko, Sergei"]
[Black "Andreikin, Dmitry"]
[Site "St. Petersburg"]
[Round "12.6"]
[Annotator "ChessBase"]
[Result "1/2-1/2"]
[Date "2018.12.28"]
[WhiteElo "2604"]
[BlackElo "2719"]
[PlyCount "61"]
[TimeControl "900+10"]

1. e4 {[%emt 0:0:0]} g6 {[%emt 0:0:0]} 2. d4 {[%emt 0:0:2]} Bg7 {[%emt 0:0:0]} 3. Nc3 {[%emt 0:0:2]} c6 {[%emt 0:0:9]} 4. Nf3 {[%emt 0:0:2]} d6 {[%emt 0:0:9]} 5. h3 {[%emt 0:0:6]} Nf6 {[%emt 0:0:4]} 6. a4 {[%emt 0:0:0]} 0-0 {[%emt 0:0:9]} 7. Be3 {[%emt 0:0:2]} Qc7 {[%emt 0:0:30]} 8. a5 {[%emt 0:0:47]
} e5 {[%emt 0:0:29]} 9. dxe5 {[%emt 0:0:25]} dxe5 {[%emt 0:0:0]} 10. Bc4 {[%emt 0:0:3]} Nh5 {[%emt 0:1:14]} 11. 0-0 {[%emt 0:1:29]} Nf4 {[%emt 0:0:59]} 12. Re1 {[%emt 0:1:6]} Be6 {[%emt 0:1:42]} 13. Bf1 {[%emt 0:0:3]
} h6 {[%emt 0:2:22]} 14. Ne2 {[%emt 0:2:23]} Nd7 {[%emt 0:0:0]} 15. Qd2 {[%emt 0:2:17]} g5 {[%emt 0:1:10]} 16. Ng3 {[%emt 0:0:9]} Rfd8 {[%emt 0:0:45]} 17. Qc3 {[%emt 0:0:12]} Nf8 {[%emt 0:0:31]} 18. Red1 {[%emt 0:2:24]
} N8g6 {[%emt 0:0:4]} 19. Rxd8+ {[%emt 0:1:40]} Qxd8 {[%emt 0:0:0]} 20. a6 {[%emt 0:0:8]} bxa6 {[%emt 0:0:52]} 21. Rxa6 {[%emt 0:0:23]} Qd1 {[%emt 0:0:30]} 22. Rxa7 {[%emt 0:0:58]} Rxa7 {[%emt 0:1:45]} 23. Bxa7 {[%emt 0:0:2]
} Nh4 {[%emt 0:0:1]} 24. Ne1 {[%emt 0:3:13]} f5 {[%emt 0:0:0]} 25. exf5 {[%emt 0:0:51]} Bd5 {[%emt 0:0:4]} 26. Kh2 {[%emt 0:0:5]} Nfxg2 {[%emt 0:2:10]} 27. Nxg2 {[%emt 0:0:7]} Nf3+ {[%emt 0:0:7]} 28. Kh1 {[%emt 0:0:1]} Nh4 {[%emt 0:0:3]} 29. Kh2 {[%emt 0:0:9]} Nf3+ {[%emt 0:0:0]} 30. Kh1 {[%emt 0:0:3]} Nh4 {[%emt 0:0:7]} 31. Kh2 {[%emt 0:0:31]} 1/2-1/2

[Event "FIDE World Rapid-ch Open 2018"]
[White "Mamedyarov, Shakhriyar"]
[Black "Anton Guijarro, David"]
[Site "St. Petersburg"]
[Round "12.7"]
[Annotator "RC"]
[Result "1-0"]
[Date "2018.12.28"]
[WhiteElo "2817"]
[BlackElo "2642"]
[PlyCount "69"]
[TimeControl "900+10"]

1. d4 {[%emt 0:0:0]} f5 {[%emt 0:0:0]} 2. c4 {[%emt 0:0:0]} Nf6 {[%emt 0:0:0]} 3. Nf3 {[%emt 0:0:0]} g6 {[%emt 0:0:0]} 4. g3 {[%emt 0:0:0]} Bg7 {[%emt 0:0:0]} 5. Bg2 {[%emt 0:0:0]} 0-0 {[%emt 0:0:3]} 6. 0-0 {[%emt 0:0:0]} d6 {[%emt 0:0:3]} 7. Nc3 {[%emt 0:0:1]} c6 {[%emt 0:0:2]} 8. Qb3 {[%emt 0:0:3]} Na6 {[%emt 0:0:57]} 9. Re1 {[%emt 0:0:24]} Kh8 {[%emt 0:0:0]} 10. e4 {[%emt 0:0:40]} e5 {[%emt 0:1:32]} 11. exf5 {[%emt 0:0:36]} exd4 {[%emt 0:0:19]} 12. Nxd4 {[%emt 0:0:6]} Nc5 {[%emt 0:0:53]} 13. Qd1 {[%emt 0:3:2]
} gxf5 {[%emt 0:0:11]} 14. Bf4 {[%emt 0:0:1]} Nce4 {[%emt 0:0:0]} 15. Rc1 {[%emt 0:1:8]} d5 {[%emt 0:2:1]} 16. Nxe4 {[%emt 0:2:8]} Nxe4 {[%emt 0:0:28]} 17. Be3 {[%emt 0:3:45]} c5 {[%emt 0:1:31]} 18. Nb3 {[%emt 0:0:27]
} b6 {[%emt 0:1:16]} 19. cxd5 {[%emt 0:0:15]} Bxb2 {[%emt 0:0:0]} 20. Nd2 {[%emt 0:0:3]} Bxc1 {[%emt 0:0:33]} 21. Qxc1 {[%emt 0:0:2]} Nf6 {[%emt 0:1:15]} 22. Bh6 {[%emt 0:2:20]} Re8 {[%emt 0:0:50]} 23. Rxe8+ {[%emt 0:1:10]
} Qxe8 {[%emt 0:0:6]} 24. d6 {[%emt 0:0:13]} Rb8 {[%emt 0:0:0]} 25. Qc3 {[%emt 0:0:19]} Qg6 {[%emt 0:0:23]} 26. Bf8 {[%emt 0:0:18]} Kg8 {[%emt 0:1:4]} 27. Be7 {[%emt 0:0:24]} Ng4 {[%emt 0:1:43]} 28. h3 {[%emt 0:0:0]} Nh6 {[%emt 0:0:2]} 29. Nc4 {[%emt 0:0:2]} Be6 {[%emt 0:0:23]} 30. Ne5 {[%emt 0:0:13]} Qg7 {[%emt 0:0:7]} 31. Qe3 {[%emt 0:0:18]} f4 {[%emt 0:0:0]} 32. Qxf4 {[%emt 0:0:7]} Nf5 {[%emt 0:0:20]} 33. Ng4 {[%emt 0:0:55]} Qd4 {[%emt 0:0:58]} 34. Be4 {[%emt 0:0:3]} Ng7 {[%emt 0:0:14]} 35. d7 {[%emt 0:0:22]
} 1-0

[Event "FIDE World Rapid-ch Open 2018"]
[White "Petrosian, Tigran L."]
[Black "Nepomniachtchi, Ian"]
[Site "St. Petersburg"]
[Round "12.8"]
[Annotator "ChessBase"]
[Result "1/2-1/2"]
[Date "2018.12.28"]
[WhiteElo "2598"]
[BlackElo "2763"]
[PlyCount "37"]
[TimeControl "900+10"]

1. Nf3 {[%emt 0:0:0]} c5 {[%emt 0:0:0]} 2. g3 {[%emt 0:0:0]} Nc6 {[%emt 0:0:0]
} 3. c4 {[%emt 0:0:0]} g6 {[%emt 0:0:1]} 4. Nc3 {[%emt 0:0:0]} Bg7 {[%emt 0:0:2]} 5. Bg2 {[%emt 0:0:0]} d6 {[%emt 0:0:4]} 6. 0-0 {[%emt 0:0:3]
} e6 {[%emt 0:0:5]} 7. e3 {[%emt 0:0:20]} Nge7 {[%emt 0:0:9]
} 8. d4 {[%emt 0:0:2]} cxd4 {[%emt 0:0:4]} 9. exd4 {[%emt 0:0:31]} d5 {[%emt 0:0:4]
} 10. cxd5 {[%emt 0:0:21]} exd5 {[%emt 0:0:2]} 11. Ne5 {[%emt 0:0:26]
} 0-0 {[%emt 0:0:8]} 12. Bg5 {[%emt 0:1:43]} Be6 {[%emt 0:0:0]} 13. Re1 {[%emt 0:0:53]} Re8 {[%emt 0:0:49]} 14. Qd2 {[%emt 0:2:4]} Rc8 {[%emt 0:0:57]} 15. Rad1 {[%emt 0:0:5]} a6 {[%emt 0:1:15]} 16. Nxc6 {[%emt 0:1:59]
} Rxc6 {[%emt 0:1:1]} 17. Nxd5 {[%emt 0:6:24]} Bxd5 {[%emt 0:0:0]} 18. Rxe7 {[%emt 0:1:35]} Rxe7 {[%emt 0:0:5]} 19. Bxe7 {[%emt 0:0:0]} 1/2-1/2

[Event "FIDE World Rapid-ch Open 2018"]
[White "Svidler, Peter"]
[Black "Firouzja, Alireza"]
[Site "St. Petersburg"]
[Round "12.9"]
[Annotator "ChessBase"]
[Result "0-1"]
[Date "2018.12.28"]
[WhiteElo "2737"]
[BlackElo "2607"]
[PlyCount "66"]
[TimeControl "900+10"]

1. c4 {[%emt 0:0:0]} g6 {[%emt 0:0:6]} 2. d4 {[%emt 0:1:6]} Bg7 {[%emt 0:0:0]} 3. Nf3 {[%emt 0:0:12]} Nf6 {[%emt 0:0:25]} 4. g3 {[%emt 0:0:3]} 0-0 {[%emt 0:0:22]} 5. Bg2 {[%emt 0:0:23]} d6 {[%emt 0:0:3]} 6. 0-0 {[%emt 0:0:0]} Ne4 {[%emt 0:0:2]} 7. Qc2 {[%emt 0:4:28]} f5 {[%emt 0:0:1]} 8. Nc3 {[%emt 0:0:13]} Nxc3 {[%emt 0:0:5]} 9. Qxc3 {[%emt 0:1:27]} Nc6 {[%emt 0:0:0]} 10. Rd1 {[%emt 0:0:10]} Qe8 {[%emt 0:0:19]} 11. Qb3 {[%emt 0:1:5]} e5 {[%emt 0:0:54]} 12. c5+ {[%emt 0:0:1]} Kh8 {[%emt 0:0:1]} 13. d5 {[%emt 0:0:40]
} Nd8 {[%emt 0:0:36]} 14. Qa3 {[%emt 0:0:44]} Nf7 {[%emt 0:0:0]} 15. Ng5 {[%emt 0:0:5]} Nxg5 {[%emt 0:2:58]} 16. Bxg5 {[%emt 0:0:2]} f4 {[%emt 0:1:0]} 17. cxd6 {[%emt 0:0:2]} cxd6 {[%emt 0:0:7]} 18. Qxd6 {[%emt 0:2:55]
} h6 {[%emt 0:0:11]} 19. Be7 {[%emt 0:0:1]} Rf7 {[%emt 0:0:0]} 20. Qxg6 {[%emt 0:0:19]} Bf5 {[%emt 0:1:26]} 21. Qh5 {[%emt 0:0:6]} Qxe7 {[%emt 0:0:4]} 22. d6 {[%emt 0:0:4]} Qf6 {[%emt 0:0:11]} 23. Rd5 {[%emt 0:0:37]
} Bg6 {[%emt 0:1:18]} 24. Qg4 {[%emt 0:0:16]} Rd8 {[%emt 0:0:0]} 25. Rad1 {[%emt 0:0:7]} Rfd7 {[%emt 0:0:31]} 26. gxf4 {[%emt 0:0:28]} exf4 {[%emt 0:0:13]} 27. R1d4 {[%emt 0:0:14]} Rxd6 {[%emt 0:0:24]} 28. Rxf4 {[%emt 0:0:2]} Qe7 {[%emt 0:0:24]} 29. Rxd6 {[%emt 0:0:28]} Rxd6 {[%emt 0:0:0]} 30. e3 {[%emt 0:0:1]} Kh7 {[%emt 0:0:18]} 31. h4 {[%emt 0:1:22]} h5 {[%emt 0:0:15]} 32. Qe2 {[%emt 0:0:1]} Be5 {[%emt 0:0:17]} 33. Rb4 {[%emt 0:0:1]
} b6 {[%emt 0:0:33]} 0-1

[Event "FIDE World Rapid-ch Open 2018"]
[White "Riazantsev, Alexander"]
[Black "Nakamura, Hikaru"]
[Site "St. Petersburg"]
[Round "12.10"]
[Annotator "ChessBase"]
[Result "0-1"]
[Date "2018.12.28"]
[WhiteElo "2649"]
[BlackElo "2746"]
[PlyCount "82"]
[TimeControl "900+10"]

1. d4 {[%emt 0:0:0]} f5 {[%emt 0:0:0]} 2. g3 {[%emt 0:0:0]} Nf6 {[%emt 0:0:0]} 3. Bg2 {[%emt 0:0:0]} g6 {[%emt 0:0:0]} 4. c3 {[%emt 0:0:0]} Bg7 {[%emt 0:0:0]} 5. Nd2 {[%emt 0:0:0]} Nc6 {[%emt 0:0:16]} 6. f4 {[%emt 0:0:0]} d6 {[%emt 0:0:34]} 7. e4 {[%emt 0:0:36]} e5 {[%emt 0:0:2]} 8. fxe5 {[%emt 0:1:29]} dxe5 {[%emt 0:0:7]} 9. d5 {[%emt 0:0:1]} Ne7 {[%emt 0:0:0]} 10. c4 {[%emt 0:0:0]} c6 {[%emt 0:0:4]} 11. Ne2 {[%emt 0:2:18]} fxe4 {[%emt 0:0:42]} 12. Nxe4 {[%emt 0:0:21]} Nxe4 {[%emt 0:0:7]} 13. Bxe4 {[%emt 0:0:1]
} cxd5 {[%emt 0:0:2]} 14. cxd5 {[%emt 0:0:6]} 0-0 {[%emt 0:0:0]} 15. Bg5 {[%emt 0:0:49]} Qd6 {[%emt 0:2:42]} 16. Qb3 {[%emt 0:1:43]} Rf7 {[%emt 0:2:13]} 17. Nc3 {[%emt 0:1:53]} a6 {[%emt 0:0:41]} 18. Bg2 {[%emt 0:0:25]
} e4 {[%emt 0:4:54]} 19. Nxe4 {[%emt 0:0:29]} Qe5 {[%emt 0:0:0]} 20. Bf4 {[%emt 0:1:1]} Qxb2 {[%emt 0:0:3]} 21. Qxb2 {[%emt 0:0:10]} Bxb2 {[%emt 0:0:1]} 22. Rb1 {[%emt 0:0:1]} Bd4 {[%emt 0:1:7]} 23. Rd1 {[%emt 0:0:52]
} Nf5 {[%emt 0:0:5]} 24. d6 {[%emt 0:1:26]} Bd7 {[%emt 0:0:0]} 25. Ng5 {[%emt 0:0:13]} Rf6 {[%emt 0:0:9]} 26. Bd5+ {[%emt 0:1:17]} Kg7 {[%emt 0:0:12]} 27. Ne4 {[%emt 0:0:12]} Re8 28. Kd2 Rff8 {[%emt 0:0:2]} 29. Rc1 {[%emt 0:0:9]} Bb6 {[%emt 0:0:5]} 30. Bxb7 {[%emt 0:1:25]} Ba5+ {[%emt 0:0:9]
} 31. Kc2 {[%emt 0:0:5]} Nd4+ {[%emt 0:1:54]} 32. Kd3 {[%emt 0:0:17]
} Ne6 {[%emt 0:0:1]} 33. Be5+ {[%emt 0:0:4]} Kh6 {[%emt 0:0:0]} 34. Nf6 {[%emt 0:0:48]} Bb5+ {[%emt 0:0:3]} 35. Kc2 {[%emt 0:0:5]} Nc5 {[%emt 0:0:28]} 36. Nxe8 {[%emt 0:0:25]} Rxe8 {[%emt 0:0:0]} 37. Rhe1 {[%emt 0:0:21]
} Bxe1 {[%emt 0:0:2]} 38. Rxe1 {[%emt 0:0:1]} Nxb7 {[%emt 0:0:0]} 39. Bf4+ {[%emt 0:0:1]} Kg7 {[%emt 0:0:1]} 40. Rxe8 {[%emt 0:0:31]
} Bxe8 {[%emt 0:0:1]} 41. Kc3 {[%emt 0:0:4]} Kf7 {[%emt 0:0:2]} 0-1

[Event "FIDE World Rapid-ch Open 2018"]
[White "Saric, Ivan"]
[Black "Kamsky, Gata"]
[Site "St. Petersburg"]
[Round "12.12"]
[Annotator "ChessBase"]
[Result "1/2-1/2"]
[Date "2018.12.28"]
[WhiteElo "2695"]
[BlackElo "2666"]
[PlyCount "57"]
[TimeControl "900+10"]

1. e4 {[%emt 0:0:0]} c5 {[%emt 0:0:0]} 2. Nf3 {[%emt 0:0:0]} e6 {[%emt 0:0:0]} 3. d4 {[%emt 0:0:0]} cxd4 {[%emt 0:0:0]} 4. Nxd4 {[%emt 0:0:0]} a6 {[%emt 0:0:1]} 5. Bd3 {[%emt 0:0:0]} g6 {[%emt 0:0:4]} 6. c4 {[%emt 0:0:0]} Bg7 {[%emt 0:0:5]} 7. Nb3 {[%emt 0:0:2]} Ne7 {[%emt 0:0:35]} 8. 0-0 {[%emt 0:0:9]} Nbc6 {[%emt 0:0:5]} 9. Nc3 {[%emt 0:0:5]} 0-0 {[%emt 0:0:6]
} 10. Bf4 {[%emt 0:0:17]} d5 {[%emt 0:0:22]} 11. exd5 {[%emt 0:0:0]} exd5 {[%emt 0:0:3]} 12. c5 {[%emt 0:0:9]} b6 {[%emt 0:0:10]} 13. Bd6 {[%emt 0:1:37]} bxc5 {[%emt 0:0:35]} 14. Bxc5 {[%emt 0:0:4]} Re8 {[%emt 0:0:21]
} 15. Re1 {[%emt 0:0:16]} Rb8 {[%emt 0:0:8]} 16. Qd2 {[%emt 0:0:0]} a5 {[%emt 0:0:42]} 17. Nb5 {[%emt 0:0:49]} a4 {[%emt 0:2:23]} 18. N3d4 {[%emt 0:0:2]} Nxd4 {[%emt 0:0:33]} 19. Nxd4 {[%emt 0:0:30]} Bd7 {[%emt 0:0:11]
} 20. Bf1 {[%emt 0:2:27]} Nf5 {[%emt 0:0:23]} 21. Rxe8+ {[%emt 0:0:53]
} Qxe8 {[%emt 0:0:2]} 22. Re1 {[%emt 0:0:8]} Qc8 {[%emt 0:0:0]} 23. Ba7 {[%emt 0:0:51]} Nxd4 {[%emt 0:0:43]} 24. Bxd4 {[%emt 0:0:1]} Qf8 {[%emt 0:2:31]} 25. Bxg7 {[%emt 0:1:48]} Qxg7 {[%emt 0:0:2]} 26. Qxd5 {[%emt 0:0:2]
} Be6 {[%emt 0:0:3]} 27. Qe4 {[%emt 0:2:56]} Qxb2 {[%emt 0:0:0]} 28. Qxa4 {[%emt 0:0:2]} Qxa2 {[%emt 0:0:12]} 29. Qxa2 1/2-1/2